[Event "FIDE WYCC Open U14 2023"]
[Site "Montesilvano"]
[Date "2023.11.17"]
[Round "5.7"]
[White "Medhus, Vitus Bondo"]
[Black "Agasarov, Benik"]
[Result "1/2-1/2"]
[ECO "B23"]
[WhiteElo "2108"]
[BlackElo "2360"]
[Annotator "RC"]
[PlyCount "87"]
[EventDate "2023.11.13"]
[EventType "swiss"]
[EventCountry "ITA"]
[SourceTitle "playchess.com"]
[Source "ChessBase"]
[SourceQuality "1"]
[TimeControl "40/5400+30:1800+30"]

1. e4 {[%emt 0:00:03]} c5 {[%emt 0:00:10]} 2. Nc3 {[%emt 0:00:05]} Nc6 {[%emt 0:02:24]} 3. f4 {[%emt 0:00:06]} g6 {[%emt 0:00:24]} 4. Nf3 {[%emt 0:00:20]} Bg7 {[%emt 0:00:10]} 5. a4 {[%emt 0:00:18]} e6 {[%emt 0:00:32]} 6. e5 {[%emt 0:00:06]} d6 {[%emt 0:01:16]} 7. Bb5 {[%emt 0:00:06]} Nge7 {[%emt 0:02:39]} 8. Ne4 {[%emt 0:00:36]} dxe5 {[%emt 0:00:05]} 9. fxe5 {[%emt 0:00:08]} O-O {[%emt 0:00:29]} 10. Nf6+ {[%emt 0:00:07]} Kh8 {[%emt 0:01:28]} 11. d4 {[%emt 0:02:06]} cxd4 {[%emt 0:08:04]} 12. Bg5 {[%emt 0:00:09]} Qc7 {[%emt 0:02:35]} 13. Qe2 {[%emt 0:04:00]} Nd5 {[%emt 0:27:07]} 14. Bxc6 {[%emt 0:15:19]} bxc6 {[%emt 0:00:29]} 15. h4 {[%emt 0:01:46]} Bxf6 {[%emt 0:05:09]} 16. Bxf6+ {[%emt 0:01:43]} Nxf6 {[%emt 0:00:15]} 17. exf6 {[%emt 0:00:06]} Qg3+ {[%emt 0:12:53]} 18. Qf2 {[%emt 0:00:14]} Qxf2+ {[%emt 0:02:17]} 19. Kxf2 {[%emt 0:00:06]} h6 {[%emt 0:01:08]} 20. Nxd4 {[%emt 0:04:11]} c5 {[%emt 0:01:01]} 21. Nb3 {[%emt 0:03:20]} Rb8 {[%emt 0:01:20]} 22. Rab1 {[%emt 0:08:31]} Rb4 {[%emt 0:01:17]} 23. Nxc5 {[%emt 0:01:22]} Rc4 {[%emt 0:00:27]} 24. b4 {[%emt 0:02:27]} Rxc2+ {[%emt 0:01:38]} 25. Kf3 {[%emt 0:01:45]} Rc3+ {[%emt 0:00:39]} 26. Kf2 {[%emt 0:02:36]} Rc4 {[%emt 0:02:31]} 27. Rhc1 {[%emt 0:03:55]} Rxh4 {[%emt 0:01:29]} 28. b5 {[%emt 0:01:56]} e5 {[%emt 0:02:09]} 29. a5 {[%emt 0:04:38]} Rf4+ {[%emt 0:00:43]} 30. Ke3 {[%emt 0:00:58]} Rxf6 {[%emt 0:00:14]} 31. b6 {[%emt 0:00:38]} axb6 {[%emt 0:00:03]} 32. axb6 {[%emt 0:01:31]} Kg7 {[%emt 0:10:37]} 33. b7 {[%emt 0:02:40]} Bxb7 {[%emt 0:00:14]} 34. Rxb7 {[%emt 0:00:08]} Ra8 {[%emt 0:00:41]} 35. Ne4 {[%emt 0:04:36]} Rf4 {[%emt 0:00:38]} 36. Rc3 {[%emt 0:02:56]} h5 {[%emt 0:03:14]} 37. Ng5 {[%emt 0:03:21]} Rf5 {[%emt 0:00:51]} 38. Rcc7 {[%emt 0:01:47]} Ra3+ {[%emt 0:00:10]} 39. Ke4 {[%emt 0:01:17]} Ra4+ {[%emt 0:02:39]} 40. Ke3 {[%emt 0:00:00]} Ra3+ {[%emt 0:00:00]} 41. Ke4 {[%emt 0:01:23]} Kf6 {[%emt 0:01:49]} 42. Nh7+ {[%emt 0:00:14]} Kg7 {[%emt 0:00:06]} 43. Ng5 {[%emt 0:00:11]} Kf6 {[%emt 0:08:36]} 44. Nh7+ {[%emt 0:00:09]} 1/2-1/2

[Event "FIDE WYCC Open U14 2023"]
[Site "Montesilvano"]
[Date "2023.11.17"]
[Round "5.8"]
[White "Arca, Christian Gian Karlo"]
[Black "Kuziev, Miraziz"]
[Result "*"]
[ECO "A45"]
[WhiteElo "2347"]
[BlackElo "2053"]
[Annotator "RC"]
[PlyCount "106"]
[EventDate "2023.11.13"]
[EventType "swiss"]
[EventCountry "ITA"]
[SourceTitle "playchess.com"]
[Source "ChessBase"]
[SourceQuality "1"]
[TimeControl "40/5400+30:1800+30"]

1. d4 {[%emt 0:00:02]} Nf6 {[%emt 0:01:35]} 2. Bf4 {[%emt 0:00:10]} g6 {[%emt 0:00:07]} 3. Nc3 {[%emt 0:00:03]} d5 {[%emt 0:00:10]} 4. Nb5 {[%emt 0:00:01]} Na6 {[%emt 0:00:06]} 5. e3 {[%emt 0:00:06]} Bg7 {[%emt 0:00:04]} 6. h3 {[%emt 0:00:05]} O-O {[%emt 0:00:19]} 7. Nf3 {[%emt 0:00:03]} c6 {[%emt 0:00:07]} 8. Nc3 {[%emt 0:00:03]} Nb8 {[%emt 0:00:06]} 9. Be2 {[%emt 0:01:05]} b5 {[%emt 0:01:54]} 10. a3 {[%emt 0:04:12]} Nbd7 {[%emt 0:00:59]} 11. O-O {[%emt 0:00:46]} a5 {[%emt 0:02:17]} 12. b4 {[%emt 0:02:27]} Nb6 {[%emt 0:00:06]} 13. Ne5 {[%emt 0:00:27]} Bb7 {[%emt 0:00:04]} 14. Qb1 {[%emt 0:14:26]} a4 {[%emt 0:06:25]} 15. Nd3 {[%emt 0:05:04]} Nfd7 {[%emt 0:00:19]} 16. Qa2 {[%emt 0:01:53]} Nc4 {[%emt 0:05:48]} 17. Rad1 {[%emt 0:00:31]} e5 {[%emt 0:02:50]} 18. dxe5 {[%emt 0:01:03]} Qe7 {[%emt 0:07:19]} 19. Nb1 {[%emt 0:14:55]} Ncxe5 {[%emt 0:17:19]} 20. Nd2 {[%emt 0:06:36]} Nc4 {[%emt 0:05:05]} 21. Nxc4 {[%emt 0:02:09]} bxc4 {[%emt 0:00:06]} 22. Ne1 {[%emt 0:00:14]} g5 {[%emt 0:00:59]} 23. Bh2 {[%emt 0:01:55]} Nf6 {[%emt 0:00:04]} 24. Bf3 {[%emt 0:14:05]} h5 {[%emt 0:01:32]} 25. Rd4 {[%emt 0:01:18]} Bc8 {[%emt 0:07:02]} 26. c3 {[%emt 0:06:15]} g4 {[%emt 0:00:43]} 27. hxg4 {[%emt 0:00:01]} hxg4 {[%emt 0:00:06]} 28. Be2 {[%emt 0:00:18]} Ne4 {[%emt 0:00:03]} 29. Qc2 {[%emt 0:00:34]} Bxd4 {[%emt 0:00:19]} 30. exd4 {[%emt 0:00:21]} Re8 {[%emt 0:06:13]} 31. Qc1 {[%emt 0:15:34]} Bf5 {[%emt 0:06:18]} 32. Bd1 {[%emt 0:00:57]} Qg5 {[%emt 0:01:12]} 33. Bf4 {[%emt 0:00:16]} Qg6 {[%emt 0:00:04]} 34. g3 {[%emt 0:00:13]} f6 {[%emt 0:00:41]} 35. Ng2 {[%emt 0:01:08]} Ng5 {[%emt 0:04:22]} 36. Nh4 {[%emt 0:01:32]} Nh3+ {[%emt 0:01:18]} 37. Kg2 {[%emt 0:03:38]} Qh5 {[%emt 0:07:25]} 38. Nxf5 {[%emt 0:03:58]} Qxf5 {[%emt 0:00:06]} 39. Bc2 {[%emt 0:00:45]} Qh5 {[%emt 0:00:03]} 40. Be3 {[%emt 0:00:00]} Nf4+ {[%emt 0:00:00]} 41. Bxf4 {[%emt 0:00:23]} Qh3+ {[%emt 0:02:41]} 42. Kg1 {[%emt 0:00:04]} Kf7 {[%emt 0:00:21]} 43. Bg5 {[%emt 0:06:05]} Rh8 {[%emt 0:01:05]} 44. Bh4 {[%emt 0:00:04]} Rxh4 {[%emt 0:00:03]} 45. gxh4 {[%emt 0:00:11]} g3 {[%emt 0:00:46]} 46. Bg6+ {[%emt 0:00:25]} Kg7 {[%emt 0:05:18]} 47. fxg3 {[%emt 0:00:14]} Qxg3+ {[%emt 0:00:02]} 48. Kh1 {[%emt 0:00:08]} Qxh4+ {[%emt 0:00:07]} 49. Kg2 {[%emt 0:00:08]} Rh8 {[%emt 0:06:18]} 50. Bf5 {[%emt 0:02:00]} Rh5 {[%emt 0:00:05]} 51. Qf4 {[%emt 0:01:32]} Rg5+ {[%emt 0:02:51]} 52. Kf3 {[%emt 0:00:22]} Qh5+ {[%emt 0:00:30]} 53. Bg4 {[%emt 0:02:13]} Qg6 {[%emt 0:01:40]} *

[Event "FIDE WYCC Open U14 2023"]
[Site "Montesilvano"]
[Date "2023.11.17"]
[Round "5.9"]
[White "Dotzer, Lukas"]
[Black "Bolat, Inayat"]
[Result "1/2-1/2"]
[ECO "C70"]
[WhiteElo "2339"]
[BlackElo "2088"]
[Annotator "RC"]
[PlyCount "87"]
[EventDate "2023.11.13"]
[EventType "swiss"]
[EventCountry "ITA"]
[SourceTitle "playchess.com"]
[Source "ChessBase"]
[SourceQuality "1"]
[TimeControl "40/5400+30:1800+30"]

1. e4 {[%emt 0:00:02]} e5 {[%emt 0:00:16]} 2. Nf3 {[%emt 0:00:07]} Nc6 {[%emt 0:00:09]} 3. Bb5 {[%emt 0:00:09]} a6 {[%emt 0:00:10]} 4. Ba4 {[%emt 0:00:04]} Nge7 {[%emt 0:00:50]} 5. c3 {[%emt 0:01:08]} Ng6 {[%emt 0:00:25]} 6. d4 {[%emt 0:04:51]} exd4 {[%emt 0:01:27]} 7. cxd4 {[%emt 0:01:30]} Bb4+ {[%emt 0:00:07]} 8. Nc3 {[%emt 0:07:06]} d5 {[%emt 0:00:14]} 9. exd5 {[%emt 0:06:01]} Bxc3+ {[%emt 0:00:37]} 10. bxc3 {[%emt 0:00:12]} Qxd5 {[%emt 0:00:06]} 11. O-O {[%emt 0:11:22]} O-O {[%emt 0:00:12]} 12. Bb3 {[%emt 0:06:41]} Qh5 {[%emt 0:00:11]} 13. Ng5 {[%emt 0:11:36]} Qxd1 {[%emt 0:01:40]} 14. Rxd1 {[%emt 0:03:48]} h6 {[%emt 0:06:33]} 15. Ne4 {[%emt 0:04:00]} Na5 {[%emt 0:02:23]} 16. Bc2 {[%emt 0:04:38]} Re8 {[%emt 0:07:14]} 17. Rb1 {[%emt 0:05:03]} b6 {[%emt 0:05:14]} 18. f3 {[%emt 0:03:09]} Bb7 {[%emt 0:01:59]} 19. d5 Rad8 {[%emt 0:06:56]} 20. d6 {[%emt 0:13:27]} Bxe4 {[%emt 0:01:16]} 21. fxe4 {[%emt 0:02:46]} Nc4 {[%emt 0:04:29]} 22. dxc7 {[%emt 0:00:31]} Rxd1+ {[%emt 0:00:19]} 23. Bxd1 {[%emt 0:00:10]} Rc8 {[%emt 0:00:05]} 24. Be2 {[%emt 0:03:39]} Rxc7 {[%emt 0:00:17]} 25. Rb4 {[%emt 0:02:19]} Nd6 {[%emt 0:13:51]} 26. Rxb6 {[%emt 0:03:47]} Nxe4 {[%emt 0:00:22]} 27. c4 {[%emt 0:01:29]} a5 {[%emt 0:04:36]} 28. Bd3 {[%emt 0:02:03]} Nf6 {[%emt 0:08:27]} 29. Bf4 {[%emt 0:02:03]} Re7 {[%emt 0:03:26]} 30. Bd6 {[%emt 0:00:59]} Re3 {[%emt 0:01:25]} 31. Bf5 {[%emt 0:00:23]} Rc3 {[%emt 0:05:07]} 32. c5 {[%emt 0:00:46]} Nd5 {[%emt 0:00:08]} 33. Rb1 {[%emt 0:00:36]} Ne3 {[%emt 0:03:38]} 34. Be4 {[%emt 0:00:29]} f5 {[%emt 0:01:12]} 35. Bb7 {[%emt 0:00:31]} Nc4 {[%emt 0:00:41]} 36. Bd5+ {[%emt 0:00:21]} Kh7 {[%emt 0:00:13]} 37. Bxc4 {[%emt 0:00:34]} Rxc4 {[%emt 0:00:01]} 38. Rb6 {[%emt 0:00:30]} f4 {[%emt 0:00:34]} 39. c6 {[%emt 0:00:27]} Nh4 {[%emt 0:00:32]} 40. c7 {[%emt 0:00:00]} Rc1+ {[%emt 0:00:00]} 41. Kf2 {[%emt 0:00:45]} Rc2+ {[%emt 0:00:51]} 42. Kg1 {[%emt 0:14:54]} Rc1+ {[%emt 0:02:21]} 43. Kf2 {[%emt 0:00:25]} Rc2+ {[%emt 0:00:06]} 44. Kg1 {[%emt 0:03:48]} 1/2-1/2

[Event "FIDE WYCC Open U14 2023"]
[Site "Montesilvano"]
[Date "2023.11.17"]
[Round "5.10"]
[White "Bharadia Yash"]
[Black "Cieslak, Patryk"]
[Result "*"]
[ECO "B90"]
[WhiteElo "2071"]
[BlackElo "2284"]
[Annotator "ChessBase"]
[PlyCount "85"]
[EventDate "2023.11.13"]
[EventType "swiss"]
[EventCountry "ITA"]
[SourceTitle "playchess.com"]
[Source "ChessBase"]
[SourceQuality "1"]
[TimeControl "40/5400+30:1800+30"]

1. e4 {[%emt 0:00:08]} c5 {[%emt 0:00:04]} 2. Nf3 {[%emt 0:00:08]} d6 {[%emt 0:00:02]} 3. d4 {[%emt 0:00:09]} cxd4 {[%emt 0:00:03]} 4. Nxd4 {[%emt 0:00:11]} Nf6 {[%emt 0:00:03]} 5. Nc3 {[%emt 0:00:14]} a6 {[%emt 0:00:05]} 6. Be3 {[%emt 0:03:10]} e5 {[%emt 0:01:06]} 7. Nb3 {[%emt 0:00:03]} Be7 {[%emt 0:00:14]} 8. f3 {[%emt 0:00:05]} Be6 {[%emt 0:00:11]} 9. Qd2 {[%emt 0:00:08]} h5 {[%emt 0:00:10]} 10. Nd5 {[%emt 0:00:05]} Nxd5 {[%emt 0:00:20]} 11. exd5 {[%emt 0:00:03]} Bf5 {[%emt 0:00:07]} 12. Be2 {[%emt 0:00:10]} a5 {[%emt 0:00:23]} 13. a4 {[%emt 0:00:02]} O-O {[%emt 0:00:23]} 14. O-O {[%emt 0:00:09]} Nd7 {[%emt 0:00:02]} 15. f4 {[%emt 0:00:15]} exf4 {[%emt 0:00:31]} 16. Bxf4 {[%emt 0:00:37]} Rc8 {[%emt 0:03:39]} 17. c3 {[%emt 0:07:11]} Nf6 {[%emt 0:05:27]} 18. Nd4 {[%emt 0:00:49]} Be4 {[%emt 0:11:29]} 19. Rae1 {[%emt 0:00:16]} Nxd5 {[%emt 0:03:35]} 20. Bxh5 {[%emt 0:02:13]} Nf6 {[%emt 0:07:12]} 21. Be2 {[%emt 0:15:53]} d5 {[%emt 0:05:57]} 22. Bb5 {[%emt 0:07:12]} Bg6 {[%emt 0:04:08]} 23. Bg5 {[%emt 0:10:37]} Ne4 {[%emt 0:03:55]} 24. Bxe7 {[%emt 0:00:47]} Nxd2 {[%emt 0:05:01]} 25. Bxd8 {[%emt 0:00:04]} Rfxd8 {[%emt 0:02:11]} 26. Rf2 {[%emt 0:03:40]} Ne4 {[%emt 0:00:40]} 27. Rf4 {[%emt 0:00:23]} Rd6 {[%emt 0:04:09]} 28. Nf5 {[%emt 0:05:20]} Bxf5 {[%emt 0:04:05]} 29. Rxf5 {[%emt 0:00:05]} Rcd8 {[%emt 0:01:35]} 30. h3 {[%emt 0:17:56]} Kf8 {[%emt 0:01:13]} 31. Ref1 {[%emt 0:06:49]} Rf6 {[%emt 0:05:32]} 32. Re5 {[%emt 0:01:13]} Rxf1+ {[%emt 0:00:55]} 33. Kxf1 {[%emt 0:02:52]} f6 {[%emt 0:01:55]} 34. Re6 {[%emt 0:00:10]} Nc5 {[%emt 0:02:26]} 35. Re1 {[%emt 0:01:41]} Ne4 {[%emt 0:03:39]} 36. Ke2 {[%emt 0:00:52]} Ke7 {[%emt 0:00:57]} 37. Kf3 {[%emt 0:08:36]} f5 {[%emt 0:03:58]} 38. h4 {[%emt 0:07:59]} Kf6 {[%emt 0:00:54]} 39. Kf4 {[%emt 0:00:46]} Rh8 {[%emt 0:11:46]} 40. g3 {[%emt 0:00:00]} g5+ {[%emt 0:00:00]} 41. hxg5+ {[%emt 0:04:18]} Nxg5 {[%emt 0:06:14]} 42. Rd1 {[%emt 0:13:42]} Ne6+ {[%emt 0:00:21]} 43. Kf3 {[%emt 0:00:04]} *

[Event "FIDE WYCC Open U14 2023"]
[Site "Montesilvano"]
[Date "2023.11.17"]
[Round "5.11"]
[White "Matyassy, Lazar"]
[Black "La Barbera, Manfredi"]
[Result "*"]
[ECO "C50"]
[WhiteElo "2281"]
[BlackElo "2043"]
[Annotator "ChessBase"]
[PlyCount "82"]
[EventDate "2023.11.13"]
[EventType "swiss"]
[EventCountry "ITA"]
[SourceTitle "playchess.com"]
[Source "ChessBase"]
[SourceQuality "1"]
[TimeControl "40/5400+30:1800+30"]

1. e4 {[%emt 0:00:07]} e5 {[%emt 0:00:13]} 2. Nf3 {[%emt 0:00:05]} Nc6 {[%emt 0:00:06]} 3. Bc4 {[%emt 0:00:07]} Nf6 {[%emt 0:00:08]} 4. d3 {[%emt 0:00:05]} Bc5 {[%emt 0:00:08]} 5. Nc3 {[%emt 0:00:07]} a6 {[%emt 0:00:28]} 6. Bg5 {[%emt 0:01:10]} h6 {[%emt 0:00:09]} 7. Bh4 {[%emt 0:00:06]} g5 {[%emt 0:01:06]} 8. Bg3 {[%emt 0:00:07]} d6 {[%emt 0:00:24]} 9. h4 {[%emt 0:09:17]} g4 {[%emt 0:05:33]} 10. Nd2 {[%emt 0:00:35]} Nh5 {[%emt 0:17:52]} 11. Nd5 {[%emt 0:01:57]} Be6 {[%emt 0:03:17]} 12. c3 {[%emt 0:01:07]} Ba7 {[%emt 0:13:55]} 13. a4 {[%emt 0:09:05]} Ne7 {[%emt 0:14:48]} 14. Qb3 {[%emt 0:16:44]} Bxd5 {[%emt 0:17:43]} 15. Bxd5 {[%emt 0:00:06]} Nxd5 {[%emt 0:00:05]} 16. Qxd5 {[%emt 0:00:08]} Qf6 {[%emt 0:05:17]} 17. Qxb7 {[%emt 0:05:12]} O-O {[%emt 0:00:06]} 18. Rf1 {[%emt 0:07:16]} Bb6 19. Qc6 {[%emt 0:02:29]} Rab8 {[%emt 0:11:30]} 20. a5 {[%emt 0:18:15]} Bc5 21. b4 {[%emt 0:02:14]} Ba7 {[%emt 0:03:44]} 22. Qxa6 {[%emt 0:02:08]} Ra8 {[%emt 0:01:49]} 23. Qc6 {[%emt 0:02:40]} Nf4 {[%emt 0:00:21]} 24. Bxf4 {[%emt 0:06:54]} exf4 {[%emt 0:00:01]} 25. O-O-O {[%emt 0:00:27]} Rfb8 {[%emt 0:02:54]} 26. Kc2 {[%emt 0:01:48]} Qe6 {[%emt 0:00:55]} 27. Nc4 {[%emt 0:00:50]} Qe7 {[%emt 0:00:43]} 28. h5 {[%emt 0:01:10]} Rd8 {[%emt 0:00:24]} 29. g3 {[%emt 0:03:55]} f3 {[%emt 0:00:44]} 30. Rde1 {[%emt 0:00:37]} Qg5 {[%emt 0:00:33]} 31. d4 {[%emt 0:03:18]} d5 {[%emt 0:00:18]} 32. exd5 {[%emt 0:01:35]} Qf5+ {[%emt 0:00:15]} 33. Kb3 {[%emt 0:03:05]} Rab8 {[%emt 0:00:20]} 34. Re3 {[%emt 0:01:50]} Rxd5 {[%emt 0:01:01]} 35. Re8+ {[%emt 0:00:22]} Rxe8 {[%emt 0:00:14]} 36. Qxe8+ {[%emt 0:00:02]} Kg7 {[%emt 0:00:23]} 37. Ne3 {[%emt 0:00:14]} Qd3 {[%emt 0:00:54]} 38. Nxd5 {[%emt 0:00:22]} Qxf1 {[%emt 0:00:01]} 39. Qe5+ {[%emt 0:00:15]} Kg8 40. Qe8+ {[%emt 0:00:00]} Kg7 {[%emt 0:00:00]} 41. Qe5+ {[%emt 0:19:02]} Kg8 {[%emt 0:02:02]} *

[Event "FIDE WYCC Open U14 2023"]
[Site "Montesilvano"]
[Date "2023.11.17"]
[Round "5.12"]
[White "Kozlovic, Jernej"]
[Black "Pleschke, Julius Jonas"]
[Result "*"]
[ECO "B12"]
[WhiteElo "2263"]
[BlackElo "2024"]
[Annotator "ChessBase"]
[PlyCount "87"]
[EventDate "2023.11.13"]
[EventType "swiss"]
[EventCountry "ITA"]
[SourceTitle "playchess.com"]
[Source "ChessBase"]
[SourceQuality "1"]
[TimeControl "40/5400+30:1800+30"]

1. e4 {[%emt 0:00:29]} c6 {[%emt 0:00:16]} 2. d4 {[%emt 0:00:50]} d5 {[%emt 0:00:06]} 3. exd5 {[%emt 0:00:17]} cxd5 {[%emt 0:00:06]} 4. Bd3 {[%emt 0:00:12]} Nc6 {[%emt 0:00:34]} 5. c3 {[%emt 0:00:15]} Nf6 {[%emt 0:00:12]} 6. Bf4 {[%emt 0:00:14]} Bg4 {[%emt 0:00:19]} 7. Qb3 {[%emt 0:00:28]} Qd7 {[%emt 0:00:39]} 8. Nd2 {[%emt 0:00:48]} e6 {[%emt 0:00:08]} 9. Ngf3 {[%emt 0:00:19]} Bd6 {[%emt 0:00:08]} 10. Bxd6 {[%emt 0:00:13]} Qxd6 {[%emt 0:00:08]} 11. O-O {[%emt 0:00:24]} O-O {[%emt 0:00:10]} 12. Rfe1 {[%emt 0:00:16]} Ne7 {[%emt 0:17:03]} 13. Ne5 {[%emt 0:03:03]} Bf5 {[%emt 0:00:48]} 14. Bxf5 {[%emt 0:00:52]} Nxf5 {[%emt 0:00:58]} 15. Qxb7 {[%emt 0:06:07]} Rab8 {[%emt 0:06:17]} 16. Qxa7 {[%emt 0:00:42]} Rxb2 {[%emt 0:01:20]} 17. Nb3 {[%emt 0:01:58]} Ne4 {[%emt 0:05:34]} 18. Rxe4 {[%emt 0:02:20]} Rxb3 {[%emt 0:03:08]} 19. axb3 {[%emt 0:01:21]} dxe4 {[%emt 0:00:08]} 20. Qc5 {[%emt 0:25:51]} f6 {[%emt 0:08:44]} 21. Qxd6 {[%emt 0:05:49]} Nxd6 {[%emt 0:00:13]} 22. Nc6 {[%emt 0:00:49]} Kf7 {[%emt 0:05:04]} 23. Ra7+ {[%emt 0:00:25]} Kg6 {[%emt 0:01:06]} 24. Kf1 {[%emt 0:04:21]} Nb5 {[%emt 0:05:03]} 25. Ne7+ {[%emt 0:02:02]} Kh6 {[%emt 0:03:56]} 26. Ra6 {[%emt 0:00:49]} Nxc3 {[%emt 0:01:12]} 27. Rxe6 {[%emt 0:03:03]} Ra8 {[%emt 0:07:29]} 28. g3 {[%emt 0:06:16]} Ra1+ {[%emt 0:14:20]} 29. Kg2 {[%emt 0:00:03]} Rd1 {[%emt 0:00:12]} 30. h4 {[%emt 0:21:14]} Kh5 {[%emt 0:05:21]} 31. Kh3 {[%emt 0:03:08]} Rh1+ {[%emt 0:00:14]} 32. Kg2 {[%emt 0:00:03]} Rd1 {[%emt 0:00:46]} 33. Nf5 {[%emt 0:05:15]} Kg6 {[%emt 0:07:18]} 34. Ne3 {[%emt 0:03:20]} Rxd4 {[%emt 0:02:11]} 35. Re7 {[%emt 0:00:38]} h5 {[%emt 0:03:13]} 36. Rxg7+ {[%emt 0:00:07]} Kxg7 {[%emt 0:00:14]} 37. Nf5+ {[%emt 0:00:04]} Kg6 {[%emt 0:00:47]} 38. Nxd4 {[%emt 0:00:04]} Nd5 {[%emt 0:01:21]} 39. Kf1 {[%emt 0:01:11]} f5 {[%emt 0:02:05]} 40. Ne2 {[%emt 0:00:00]} Kf7 {[%emt 0:00:00]} 41. Nf4 {[%emt 0:05:59]} Nf6 {[%emt 0:01:50]} 42. Ke2 {[%emt 0:02:25]} Ke7 {[%emt 0:00:50]} 43. Ke3 {[%emt 0:05:28]} Ng4+ {[%emt 0:00:45]} 44. Kd4 {[%emt 0:07:05]} *

[Event "FIDE WYCC Open U14 2023"]
[Site "Montesilvano"]
[Date "2023.11.17"]
[Round "5.13"]
[White "Dinh Nho Kiet"]
[Black "Escudero Ribo, Eloi"]
[Result "1-0"]
[ECO "D85"]
[WhiteElo "2253"]
[BlackElo "1929"]
[Annotator "ChessBase"]
[PlyCount "43"]
[EventDate "2023.11.13"]
[EventType "swiss"]
[EventCountry "ITA"]
[SourceTitle "playchess.com"]
[Source "ChessBase"]
[SourceQuality "1"]
[TimeControl "40/5400+30:1800+30"]

1. d4 {[%emt 0:00:33]} Nf6 {[%emt 0:00:04]} 2. c4 {[%emt 0:00:06]} g6 {[%emt 0:00:07]} 3. Nc3 {[%emt 0:00:06]} d5 {[%emt 0:00:06]} 4. cxd5 {[%emt 0:01:02]} Nxd5 {[%emt 0:00:11]} 5. Bd2 {[%emt 0:00:28]} Bg7 {[%emt 0:00:26]} 6. e4 {[%emt 0:00:04]} Nxc3 {[%emt 0:00:15]} 7. Bxc3 {[%emt 0:00:07]} c5 {[%emt 0:05:32]} 8. d5 {[%emt 0:01:24]} Bxc3+ {[%emt 0:00:55]} 9. bxc3 {[%emt 0:00:12]} O-O {[%emt 0:02:13]} 10. Qd2 {[%emt 0:00:25]} e6 {[%emt 0:01:04]} 11. d6 {[%emt 0:02:02]} Nc6 {[%emt 0:03:27]} 12. Nf3 {[%emt 0:04:16]} e5 {[%emt 0:18:11]} 13. h4 {[%emt 0:19:05]} Bg4 {[%emt 0:13:25]} 14. h5 {[%emt 0:03:12]} Bxf3 {[%emt 0:11:29]} 15. gxf3 {[%emt 0:03:13]} Qf6 {[%emt 0:12:12]} 16. hxg6 {[%emt 0:07:48]} fxg6 {[%emt 0:02:26]} 17. Bc4+ {[%emt 0:08:49]} Kh8 {[%emt 0:00:01]} 18. Rh3 {[%emt 0:02:03]} Rad8 {[%emt 0:08:49]} 19. Rd1 {[%emt 0:00:11]} Rd7 {[%emt 0:01:37]} 20. Qe3 {[%emt 0:05:29]} Rfd8 {[%emt 0:00:26]} 21. Ke2 {[%emt 0:04:06]} Rxd6 {[%emt 0:03:52]} 22. Rxh7+ {[%emt 0:00:36]} 1-0

[Event "FIDE WYCC Open U14 2023"]
[Site "Montesilvano"]
[Date "2023.11.17"]
[Round "5.14"]
[White "Brattgjerd, Isak Vinh"]
[Black "Radzimski, Antoni"]
[Result "1-0"]
[ECO "C78"]
[WhiteElo "2235"]
[BlackElo "1904"]
[Annotator "ChessBase"]
[PlyCount "65"]
[EventDate "2023.11.13"]
[EventType "swiss"]
[EventCountry "ITA"]
[SourceTitle "playchess.com"]
[Source "ChessBase"]
[SourceQuality "1"]
[TimeControl "40/5400+30:1800+30"]

1. e4 {[%emt 0:00:02]} e5 {[%emt 0:00:19]} 2. Nf3 {[%emt 0:00:05]} Nc6 {[%emt 0:00:18]} 3. Bb5 {[%emt 0:00:04]} a6 {[%emt 0:00:24]} 4. Ba4 {[%emt 0:00:04]} Nf6 {[%emt 0:00:16]} 5. O-O {[%emt 0:00:07]} b5 {[%emt 0:00:11]} 6. Bb3 {[%emt 0:00:05]} Bb7 {[%emt 0:00:16]} 7. Nc3 {[%emt 0:00:41]} Be7 {[%emt 0:01:21]} 8. d3 {[%emt 0:00:07]} d6 {[%emt 0:00:51]} 9. a4 {[%emt 0:00:05]} b4 {[%emt 0:05:04]} 10. Nd5 {[%emt 0:12:37]} Nxd5 {[%emt 0:07:19]} 11. Bxd5 {[%emt 0:01:14]} Na5 {[%emt 0:03:18]} 12. Bxb7 {[%emt 0:05:08]} Nxb7 {[%emt 0:00:02]} 13. d4 {[%emt 0:00:40]} Bf6 {[%emt 0:04:03]} 14. dxe5 {[%emt 0:02:08]} dxe5 {[%emt 0:01:33]} 15. Qe2 {[%emt 0:00:22]} O-O {[%emt 0:05:32]} 16. Be3 {[%emt 0:11:17]} Qd6 {[%emt 0:07:02]} 17. Rfd1 {[%emt 0:11:16]} Qe6 {[%emt 0:02:28]} 18. Rd5 {[%emt 0:01:15]} Rfd8 {[%emt 0:04:33]} 19. Rad1 {[%emt 0:02:20]} Rxd5 {[%emt 0:18:12]} 20. Rxd5 {[%emt 0:05:34]} c6 {[%emt 0:01:37]} 21. Rd1 {[%emt 0:01:57]} a5 {[%emt 0:02:35]} 22. b3 {[%emt 0:04:50]} Be7 {[%emt 0:04:32]} 23. Nd2 {[%emt 0:01:15]} Nd6 {[%emt 0:00:47]} 24. Bc5 {[%emt 0:02:37]} h6 {[%emt 0:02:32]} 25. h3 {[%emt 0:04:54]} g6 {[%emt 0:01:58]} 26. Bxd6 {[%emt 0:09:06]} Qxd6 {[%emt 0:01:34]} 27. Nc4 {[%emt 0:00:14]} Qc5 {[%emt 0:00:48]} 28. Rd3 {[%emt 0:04:06]} Rd8 {[%emt 0:03:03]} 29. Qe3 {[%emt 0:00:41]} Rd4 {[%emt 0:02:37]} 30. Rxd4 {[%emt 0:07:38]} exd4 {[%emt 0:00:02]} 31. Qf4 {[%emt 0:02:57]} d3 {[%emt 0:10:51]} 32. cxd3 {[%emt 0:00:07]} Qd4 {[%emt 0:00:03]} 33. Qe5 {[%emt 0:04:27]} 1-0